fUST/lending_fUST_20260418
["ID","MTS","AMOUNT","RATE_DAILY","PERIOD"]
[420734398,1776514073833,-1000.0,7.298e-05,2]
[420734399,1776514074158,-1000.0,7.298e-05,2]
[420734400,1776514074583,-1000.0,7.298e-05,2]
[420734401,1776514074897,-1000.0,7.298e-05,2]
[420734402,1776514075314,-1000.0,7.298e-05,2]
[420734403,1776514075718,-1000.0,7.298e-05,2]
[420734404,1776514076017,-1000.0,7.298e-05,2]
[420734405,1776514076432,-1000.0,7.298e-05,2]
[420734406,1776514076771,-1000.0,7.298e-05,2]
[420734407,1776514077100,-1000.0,7.298e-05,2]
[420734408,1776514077540,-1000.0,7.298e-05,2]
[420734409,1776514077994,-1000.0,7.298e-05,2]
[420734410,1776514078295,-1000.0,7.298e-05,2]
[420734411,1776514078711,-1000.0,7.298e-05,2]
[420734412,1776514079038,-1000.0,7.298e-05,2]
[420734413,1776514079710,-1000.0,7.298e-05,2]
[420734414,1776514080030,-1000.0,7.298e-05,2]
[420734415,1776514080174,-1000.0,7.298e-05,2]
[420734416,1776514080573,-1000.0,7.298e-05,2]
[420734417,1776514080938,-1000.0,7.298e-05,2]
[420734418,1776514081364,-1000.0,7.298e-05,2]
[420734419,1776514081685,-1000.0,7.298e-05,2]
[420734420,1776514082285,-1000.0,7.298e-05,2]
[420734421,1776514088010,-300.0,7.297e-05,2]
[420734422,1776514088036,-700.0,7.298e-05,2]
[420734423,1776514089127,-1000.0,7.298e-05,2]
[420734424,1776514089912,-1000.0,7.298e-05,2]
[420734425,1776514091018,-1000.0,7.298e-05,2]
[420734426,1776514091785,-1000.0,7.298e-05,2]
[420734427,1776514092617,-1000.0,7.298e-05,2]
[420734428,1776514097478,-1000.0,7.298e-05,2]
[420734431,1776514114635,-492.0,7.298e-05,2]
[420734432,1776514114661,-508.0,7.298e-05,2]
[420734433,1776514115094,-1000.0,7.298e-05,2]
[420734434,1776514115392,-1000.0,7.298e-05,2]
[420734435,1776514115854,-1000.0,7.298e-05,2]
[420734436,1776514116353,-1000.0,7.298e-05,2]
[420734437,1776514116792,-1000.0,7.298e-05,2]
[420734438,1776514117091,-1000.0,7.298e-05,2]
[420734439,1776514118226,-1000.0,7.298e-05,2]
[420734440,1776514119065,-1000.0,7.298e-05,2]
[420734441,1776514119948,-1000.0,7.298e-05,2]
[420734442,1776514120816,-1000.0,7.298e-05,2]
[420734443,1776514166452,500.0,0.00024657,120]
[420734444,1776514166700,500.0,0.00024657,120]
[420734446,1776514172825,500.0,0.00024657,120]
[420734447,1776514173022,500.0,0.00024657,120]
[420734448,1776514173246,500.0,0.00024657,120]
[420734449,1776514173537,500.0,0.00024657,120]
[420734450,1776514173767,500.0,0.00024657,120]
[420734451,1776514174008,500.0,0.00024657,120]
[420734452,1776514174255,500.0,0.00024657,120]
[420734453,1776514174491,500.0,0.00024657,120]
[420734454,1776514174720,500.0,0.00024657,120]
[420734455,1776514174952,500.0,0.00024657,120]
[420734456,1776514175533,500.0,0.00024657,120]
[420734457,1776514175772,500.0,0.00024657,120]
[420734458,1776514176009,500.0,0.00024657,120]
[420734459,1776514176240,500.0,0.00024657,120]
[420734460,1776514176474,500.0,0.00024657,120]
[420734461,1776514176709,500.0,0.00024657,120]
[420734462,1776514176961,500.0,0.00024657,120]
[420734463,1776514177203,500.0,0.00024657,120]
[420734464,1776514177447,500.0,0.00024657,120]
[420734465,1776514177704,500.0,0.00024657,120]
[420734466,1776514177947,500.0,0.00024657,120]
[420734467,1776514178361,500.0,0.00024657,120]
[420734468,1776514178408,500.0,0.00024657,120]
[420734469,1776514178655,500.0,0.00024657,120]
[420734470,1776514178909,500.0,0.00024657,120]
[420734471,1776514179145,500.0,0.00024657,120]
[420734472,1776514179390,500.0,0.00024657,120]
[420734473,1776514179641,500.0,0.00024657,120]
[420734474,1776514179865,500.0,0.00024657,120]
[420734475,1776514180086,500.0,0.00024657,120]
[420734476,1776514180308,500.0,0.00024657,120]
[420734477,1776514180539,170.78471616,0.00024657,120]
[420734478,1776514197146,541.56124661,0.00024657,120]
[420734479,1776514217294,500.0,0.00024657,120]
[420734480,1776514217533,500.0,0.00024657,120]
[420734481,1776514217781,500.0,0.00024657,120]
[420734482,1776514218005,500.0,0.00024657,120]
[420734483,1776514218264,500.0,0.00024657,120]
[420734484,1776514218500,500.0,0.00024657,120]
[420734485,1776514218739,500.0,0.00024657,120]
[420734486,1776514218971,500.0,0.00024657,120]
[420734487,1776514219384,500.0,0.00024657,120]
[420734488,1776514219442,500.0,0.00024657,120]
[420734489,1776514219642,500.0,0.00024657,120]
[420734490,1776514219878,500.0,0.00024657,120]
[420734491,1776514220110,500.0,0.00024657,120]
[420734492,1776514220338,500.0,0.00024657,120]
[420734493,1776514220583,500.0,0.00024657,120]
[420734494,1776514220829,500.0,0.00024657,120]
[420734495,1776514221065,500.0,0.00024657,120]
[420734496,1776514221285,411.58,0.00024657,120]
[420734514,1776514232405,-500.0,7.297e-05,2]
[420734516,1776514232415,-500.0,7.297e-05,2]
[420734518,1776514232429,-500.0,7.297e-05,2]
[420734520,1776514232439,-409.95596845,7.297e-05,2]
[420734522,1776514232449,-500.0,7.297e-05,2]
[420734524,1776514232458,-500.0,7.297e-05,2]
[420734526,1776514232468,-500.0,7.297e-05,2]
[420734528,1776514232477,-500.0,7.297e-05,2]
[420734530,1776514232487,-284.71299237,7.297e-05,2]
[420734532,1776514232496,-107570.59649055,7.298e-05,2]
[420734535,1776514232508,-46770.82358948,7.298e-05,2]
[420734537,1776514232518,-161.10030562,7.328e-05,2]
[420734539,1776514232528,-1801.286237,7.328e-05,2]
[420734541,1776514232538,-161.10030559,7.348e-05,2]
[420734543,1776514232548,-161.10030559,7.368e-05,2]
[420734545,1776514232557,-500.0,7.373e-05,2]
[420734547,1776514232566,-500.0,7.373e-05,2]
[420734549,1776514232576,-500.0,7.373e-05,2]
[420734551,1776514232585,-500.0,7.373e-05,2]
[420734553,1776514232595,-265.84065957,7.373e-05,2]
[420734555,1776514232604,-500.0,7.373e-05,2]
[420734557,1776514232614,-500.0,7.373e-05,2]
[420734559,1776514232623,-500.0,7.373e-05,2]
[420734561,1776514232633,-500.0,7.373e-05,2]
[420734563,1776514232643,-161.10030559,7.388e-05,2]
[420734565,1776514232652,-55826.17625358,7.398e-05,2]
[420734658,1776514239617,-263.20649338,7.324e-05,2]
[420734659,1776514239627,-49723.35382125,7.398e-05,2]
[420734660,1776514239638,-5675.334293,7.398e-05,2]
[420734668,1776514240413,-85209.00795527,7.398e-05,2]
[420734715,1776514243413,-1790.70963771,7.398e-05,2]
[420734716,1776514243521,-1967.39484448,7.398e-05,2]
[420734724,1776514246624,-3458.64472263,7.398e-05,2]
[420734726,1776514259862,201.0,0.00024658,120]
[420734727,1776514344362,500.0,0.00024657,120]
[420734728,1776514344582,500.0,0.00024657,120]
[420734729,1776514344805,500.0,0.00024657,120]
[420734730,1776514345782,500.0,0.00023449,120]
[420734732,1776514449129,500.0,0.00024657,120]
[420734733,1776514449366,500.0,0.00024657,120]
[420734734,1776514449588,500.0,0.00024657,120]
[420734735,1776514449731,500.0,0.00024657,120]
[420734736,1776514449807,500.0,0.00024657,120]
[420734737,1776514449971,500.0,0.00024657,120]
[420734738,1776514450035,312.28049714,0.00024657,120]
[420734739,1776514450200,500.0,0.00024657,120]
[420734740,1776514450417,500.0,0.00024657,120]
[420734741,1776514450651,500.0,0.00024657,120]
[420734742,1776514450887,500.0,0.00024657,120]
[420734743,1776514451120,500.0,0.00024657,120]
[420734744,1776514451354,500.0,0.00024657,120]
[420734745,1776514451656,500.0,0.00024657,120]
[420734746,1776514451808,500.0,0.00024657,120]
[420734747,1776514452041,500.0,0.00024657,120]
[420734748,1776514452298,500.0,0.00024657,120]
[420734749,1776514452532,500.0,0.00024657,120]
[420734750,1776514452753,530.2713992,0.00024657,120]
[420734753,1776514644678,500.0,0.00023429,120]
[420734755,1776514748731,152.5,0.00023429,120]
[420734756,1776514749062,80000.0,0.000165,120]
[420734757,1776514943908,2187.62279152,0.0002465,120]
[420734758,1776514944765,500.0,0.00023429,120]
[420734762,1776515084788,-502.0,5.682e-05,2]
[420734763,1776515084812,-2563.7735409,5.682e-05,2]
[420734764,1776515084836,-1659.20314104,5.9e-05,2]
[420734765,1776515084859,-301.9446118,5.93e-05,2]
[420734766,1776515084880,-1200.0,5.959e-05,2]
[420734767,1776515084904,-3773.07870626,5.96e-05,2]
[420734768,1776515086572,-1226.92129374,5.96e-05,2]
[420734769,1776515096092,-202.64543136,6.02e-05,2]
[420734770,1776515096115,-300.0,6.078e-05,2]
[420734771,1776515096135,-300.0,6.078e-05,2]
[420734772,1776515096158,-1200.0,6.081e-05,2]
[420734773,1776515096179,-6770.4332749,6.082e-05,2]
[420734774,1776515143541,-5000.0,6.022e-05,2]
[420734775,1776515143563,-506.0,6.022e-05,2]
[420734776,1776515143586,-1693.4366856,6.082e-05,2]
[420734778,1776515148906,2800.5633144,6.5e-05,2]
[420734779,1776515176414,-2199.4366856,6.5e-05,2]
[420734780,1776515176435,-1200.0,6.555e-05,2]
[420734781,1776515183313,-359.0,6.686e-05,2]
[420734784,1776515251589,500.0,0.0002343,120]
[420734785,1776515255417,-300.0,6.863e-05,2]
[420734786,1776515255438,-20.0,6.863e-05,2]
[420734787,1776515255467,-320.0,6.863e-05,2]
[420734806,1776515432619,-5000.0,6.794e-05,2]
[420734808,1776515432628,-517.0,6.863e-05,2]
[420734810,1776515432637,-295.90571956,6.864e-05,2]
[420734812,1776515432646,-300.0,6.932e-05,2]
[420734814,1776515432655,-300.0,6.932e-05,2]
[420734816,1776515432664,-211.0,6.932e-05,2]
[420734818,1776515432673,-300.0,6.932e-05,2]
[420734820,1776515432683,-1200.0,6.932e-05,2]
[420734821,1776515432692,-3656.09428044,7.098e-05,2]
[420735199,1776515443840,-920.32817028,6.726e-05,2]
[420735200,1776515443897,-1149.66,6.726e-05,2]
[420735201,1776515443908,-2930.01182972,6.726e-05,2]
[420735202,1776515443918,-516.0,6.794e-05,2]
[420735203,1776515443928,-3240.52178845,7.098e-05,2]
[420735216,1776515447113,-6272.83706141,7.098e-05,2]
[420735217,1776515447123,-291.24637229,7.154e-05,2]
[420735218,1776515447133,-500.63693294,7.173e-05,2]
[420735219,1776515447143,-500.0,7.173e-05,2]
[420735220,1776515447152,-500.0,7.173e-05,2]
[420735221,1776515447162,-500.0,7.197e-05,2]
[420735222,1776515447171,-500.0,7.197e-05,2]
[420735223,1776515447181,-651.45718232,7.197e-05,2]
[420735224,1776515447191,-500.0,7.197e-05,2]
[420735225,1776515447202,-500.0,7.197e-05,2]
[420735226,1776515447211,-500.0,7.197e-05,2]
[420735227,1776515447220,-202.37827153,7.197e-05,2]
[420735228,1776515447230,-161.10030559,7.198e-05,2]
[420735229,1776515447239,-16998.75019507,7.198e-05,2]
[420735230,1776515461740,500.0,0.00024658,120]
[420735231,1776515469260,500.0,0.00024657,120]
[420735232,1776515479345,500.0,0.00024657,120]
[420735233,1776515479572,500.0,0.00024657,120]
[420735234,1776515479852,500.0,0.00024657,120]
[420735235,1776515480452,200.14,0.00024657,120]
[420735236,1776515482379,500.0,0.00024658,120]
[420735237,1776515483352,500.0,0.00024658,120]
[420735238,1776515484968,500.0,0.00024658,120]
[420735239,1776515486923,500.0,0.00024658,120]
[420735240,1776515488281,500.0,0.00024658,120]
[420735241,1776515489412,500.0,0.00024658,120]
[420735242,1776515489705,500.0,0.00024657,120]
[420735243,1776515490289,500.0,0.00024657,120]
[420735244,1776515490531,500.0,0.00024657,120]
[420735245,1776515490593,500.0,0.00024658,120]
[420735246,1776515490759,479.79,0.00024657,120]
[420735247,1776515491711,500.0,0.00024658,120]
[420735248,1776515496967,500.0,0.00024657,120]
[420735249,1776515502920,500.0,0.00024657,120]
[420735250,1776515503150,500.0,0.00024657,120]
[420735251,1776515503376,500.0,0.00024657,120]
[420735252,1776515503606,537.98,0.00024657,120]
[420735253,1776515507667,419.38444126,0.00024657,120]
[420735254,1776515521161,500.0,0.00024657,120]
[420735255,1776515531044,500.0,0.00024657,120]
[420735256,1776515533166,500.46059045,0.00024657,120]
[420735257,1776515536155,500.0,0.00024657,120]
[420735258,1776515540355,589.57,0.00024657,120]
[420735259,1776515543031,500.0,0.00024657,120]
[420735260,1776515543135,500.0,0.00024657,120]
[420735261,1776515543356,500.0,0.00024657,120]
[420735262,1776515543577,500.0,0.00024657,120]
[420735263,1776515543817,404.93,0.00024657,120]
[420735264,1776515544857,500.0,0.00024657,120]
[420735265,1776515544931,500.0,0.0002343,120]
[420735266,1776515545553,500.0,0.00024657,120]
[420735267,1776515546009,500.0,0.00024657,120]
[420735268,1776515548670,500.0,0.00024657,120]
[420735269,1776515550514,214.20843898,0.00024657,120]
[420735270,1776515554196,500.0,0.00024657,120]
[420735271,1776515554955,500.0,0.00024657,120]
[420735272,1776515557884,258.97925935,0.00024657,120]
[420735273,1776515559562,500.0,0.00024657,120]
[420735274,1776515561749,500.0,0.00024657,120]
[420735275,1776515562662,500.0,0.00024657,120]
[420735276,1776515562905,500.0,0.00024657,120]
[420735277,1776515563178,174.22,0.00024657,120]
[420735278,1776515567024,500.0,0.00024657,120]
[420735279,1776515569335,500.0,0.00024657,120]
[420735280,1776515574180,500.0,0.00024657,120]
[420735281,1776515574433,185.05,0.00024657,120]
[420735282,1776515577606,500.0,0.00024657,120]
[420735283,1776515582063,500.0,0.00024657,120]
[420735284,1776515593273,449.30803835,0.00024657,120]
[420735285,1776515593514,500.0,0.00024657,120]
[420735286,1776515595301,535.72871599,0.00024657,120]
[420735287,1776515597852,500.0,0.00024657,120]
[420735288,1776515598074,446.9,0.00024657,120]
[420735289,1776515598963,500.0,0.00024657,120]
[420735290,1776515599233,514.94,0.00024657,120]
[420735291,1776515601460,500.0,0.00024657,120]
[420735292,1776515603214,500.0,0.00024657,120]
[420735293,1776515605291,500.0,0.00024657,120]
[420735294,1776515608081,500.0,0.00024657,120]
[420735295,1776515609002,500.0,0.00024657,120]
[420735296,1776515611321,500.0,0.00024657,120]
[420735297,1776515612558,465.37985238,0.00024657,120]
[420735298,1776515620137,500.0,0.00024657,120]
[420735299,1776515626389,500.0,0.00024657,120]
[420735300,1776515629280,153.64820097,0.000246,120]
[420735301,1776515635325,500.0,0.00024657,120]
[420735302,1776515637554,500.0,0.00024657,120]
[420735303,1776515645974,486.63860343,0.00024657,120]
[420735304,1776515647634,500.0,0.00024657,120]
[420735305,1776515647671,500.0,0.00024657,120]
[420735306,1776515652217,500.0,0.00024657,120]
[420735307,1776515655618,500.0,0.00024657,120]
[420735308,1776515655849,194.73,0.00024657,120]
[420735309,1776515659251,500.0,0.00024657,120]
[420735310,1776515662666,614.54,0.00024657,120]
[420735311,1776515668916,175.17131985,0.00024657,120]
[420735312,1776515671337,532.2202311,0.00024657,120]
[420735313,1776515676559,578.53532198,0.00024657,120]
[420735314,1776515677847,500.0,0.00024657,120]
[420735315,1776515682515,500.63154294,0.00024657,120]
[420735316,1776515694401,329.12408776,0.00024657,120]
[420735317,1776515696035,503.44763477,0.00024657,120]
[420735318,1776515696077,500.0,0.00024657,120]
[420735319,1776515699128,500.0,0.00024657,120]
[420735320,1776515699588,1999.8,0.00024658,120]
[420735321,1776515703121,500.0,0.00024657,120]
[420735322,1776515709123,207.30259116,0.00024657,120]
[420735323,1776515714497,500.61903378,0.00024657,120]
[420735324,1776515724121,500.0,0.00024657,120]
[420735325,1776515731747,501.58559678,0.00024657,120]
[420735326,1776515760443,348.44726705,0.00024657,120]
[420735327,1776515764965,500.43117963,0.00024657,120]
[420735328,1776515768396,182.66807111,0.00024657,120]
[420735329,1776515777113,295.0501636,0.00024657,120]
[420735330,1776515778834,504.33994627,0.00024657,120]
[420735331,1776515844998,500.0,0.00023436,120]
[420735332,1776515860971,500.05806982,0.00024657,120]
[420735333,1776515976778,750.0,0.00024658,120]
[420735334,1776515982387,500.0,0.00024657,120]
[420735335,1776515982689,336.99218867,0.00024657,120]
[420735337,1776516014105,130482.83495585,0.00023436,120]
[420735338,1776516048551,501.69012272,0.00024657,120]
[420735339,1776516060939,500.0,0.00024657,120]
[420735340,1776516075069,500.0,0.00024657,120]
[420735341,1776516076627,500.0,0.00024657,120]
[420735342,1776516078393,403.60251028,0.00024657,120]
[420735343,1776516082352,177.70763772,0.00024657,120]
[420735344,1776516084194,556.13,0.00024657,120]
[420735345,1776516144582,500.0,0.00023436,120]
[420735346,1776516321563,510.5115482,0.00024657,120]
[420735347,1776516352188,500.0,0.00024657,120]
[420735348,1776516352413,500.0,0.00024657,120]
[420735349,1776516352643,500.0,0.00024657,120]
[420735350,1776516352881,350.59,0.00024657,120]
[420735351,1776516444176,500.0,0.00023446,120]
[420735352,1776516524102,1016.645,0.00024658,120]
[420735354,1776516631741,-2776.19674656,5.38e-05,2]
[420735484,1776516638034,-2223.80325344,5.38e-05,2]
[420735485,1776516638044,-199.11740128,5.434e-05,2]
[420735486,1776516638055,-3498.86839808,5.489e-05,2]
[420735487,1776516638065,-1200.0,5.589e-05,2]
[420735488,1776516638074,-301.45832765,5.59e-05,2]
[420735489,1776516638084,-300.0,5.702e-05,2]
[420735490,1776516638093,-300.0,5.702e-05,2]
[420735491,1776516638103,-300.0,5.702e-05,2]
[420735492,1776516638112,-300.0,5.702e-05,2]
[420735493,1776516638122,-698.0,5.703e-05,2]
[420735494,1776516638132,-3082.29288197,5.75e-05,2]
[420735495,1776516638141,-6675.6643346,5.85e-05,2]
[420735496,1776516638151,-7414.65064163,5.95e-05,2]
[420735497,1776516638160,-1680.0,6.148e-05,2]
[420735498,1776516638170,-8153.63694875,6.15e-05,2]
[420735499,1776516638180,-300.0,6.184e-05,2]
[420735500,1776516638189,-300.0,6.184e-05,2]
[420735501,1776516638199,-300.0,6.184e-05,2]
[420735502,1776516638208,-300.0,6.184e-05,2]
[420735503,1776516638218,-300.0,6.184e-05,2]
[420735504,1776516638227,-300.0,6.184e-05,2]
[420735505,1776516638236,-300.0,6.184e-05,2]
[420735506,1776516638246,-300.0,6.184e-05,2]
[420735507,1776516638255,-300.0,6.184e-05,2]
[420735508,1776516638264,-300.0,6.184e-05,2]
[420735509,1776516638273,-300.0,6.184e-05,2]
[420735510,1776516638283,-300.0,6.184e-05,2]
[420735511,1776516638292,-300.0,6.184e-05,2]
[420735512,1776516638305,-300.0,6.184e-05,2]
[420735513,1776516638315,-300.0,6.184e-05,2]
[420735514,1776516638324,-420.0,6.272e-05,2]
[420735515,1776516638333,-420.0,6.272e-05,2]
[420735516,1776516638342,-420.0,6.272e-05,2]
[420735517,1776516638351,-420.0,6.272e-05,2]
[420735518,1776516638361,-300.0,6.287e-05,2]
[420735519,1776516638370,-600.0,6.31e-05,2]
[420735520,1776516638379,-250.0,6.579e-05,2]
[420735521,1776516638389,-245.75232934,6.7e-05,2]
[420735522,1776516638398,-656.01372962,6.7e-05,2]
[420735523,1776516638408,-244.70869684,6.762e-05,2]
[420735524,1776516638417,-1968.0,6.763e-05,2]
[420735525,1776516638426,-34367.53636831,6.798e-05,2]
[420735526,1776516638435,-173.8603386,6.865e-05,2]
[420735527,1776516638445,-500.0,6.873e-05,2]
[420735528,1776516638454,-500.0,6.873e-05,2]
[420735529,1776516638463,-500.0,6.873e-05,2]
[420735530,1776516638473,-36389.39274926,6.898e-05,2]
[420735601,1776516640268,-751.0865,6.898e-05,2]
[420735609,1776516640405,-2409.82264515,6.898e-05,2]
[420735611,1776516640417,-2290.490239,6.898e-05,2]
[420735772,1776516646091,-2642.72645967,6.829e-05,2]
[420735773,1776516646100,-2212.7183345,6.898e-05,2]
[420735775,1776516745565,500.0,0.00023446,120]
[420735779,1776517044969,500.0,0.00023436,120]
[420735780,1776517158193,152.500001,0.00023436,120]
[420735781,1776517262970,-3996.55024036,6.527e-05,2]
[420735782,1776517262982,-1003.44975964,6.527e-05,2]
[420735783,1776517262992,-500.0,6.593e-05,2]
[420735784,1776517263001,-500.0,6.593e-05,2]
[420735785,1776517263010,-500.0,6.593e-05,2]
[420735786,1776517263019,-514.0,6.593e-05,2]
[420735787,1776517263029,-300.62634011,6.594e-05,2]
[420735788,1776517263039,-180.0,6.672e-05,2]
[420735789,1776517263048,-300.0,6.672e-05,2]
[420735790,1776517263058,-500.0,6.673e-05,2]
[420735791,1776517263067,-500.0,6.673e-05,2]
[420735792,1776517263076,-201.92390025,6.673e-05,2]
[420735793,1776517344776,500.0,0.00023436,120]
[420735794,1776517365647,-422.767,6.564e-05,2]
[420735795,1776517365668,-513.0,6.564e-05,2]
[420735796,1776517365690,-64.233,6.597e-05,2]
[420735797,1776517367134,-435.767,6.597e-05,2]
[420735798,1776517367156,-500.0,6.597e-05,2]
[420735799,1776517367179,-64.233,6.597e-05,2]
[420735800,1776517367565,-435.767,6.597e-05,2]
[420735801,1776517367591,-564.233,6.598e-05,2]
[420735802,1776517367913,-1000.0,6.598e-05,2]
[420735803,1776517368323,-1000.0,6.598e-05,2]
[420735804,1776517368657,-1000.0,6.598e-05,2]
[420735805,1776517369068,-1000.0,6.598e-05,2]
[420735806,1776517369500,-1000.0,6.598e-05,2]
[420735807,1776517369843,-1000.0,6.598e-05,2]
[420735808,1776517370213,-1000.0,6.598e-05,2]
[420735809,1776517370561,-1000.0,6.598e-05,2]
[420735810,1776517371214,-1000.0,6.598e-05,2]
[420735811,1776517371309,-1000.0,6.598e-05,2]
[420735812,1776517371935,-1000.0,6.598e-05,2]
[420735813,1776517372101,-1000.0,6.598e-05,2]
[420735814,1776517372474,-1000.0,6.598e-05,2]
[420735815,1776517372841,-500.0,6.597e-05,2]
[420735816,1776517372865,-169.95800672,6.597e-05,2]
[420735817,1776517372889,-330.04199328,6.597e-05,2]
[420735818,1776517373308,-169.95800672,6.597e-05,2]
[420735819,1776517373333,-500.0,6.597e-05,2]
[420735820,1776517373356,-330.04199328,6.597e-05,2]
[420735821,1776517373641,-169.95800672,6.597e-05,2]
[420735822,1776517373667,-830.04199328,6.598e-05,2]
[420735823,1776517374073,-1000.0,6.598e-05,2]
[420735824,1776517374420,-1000.0,6.598e-05,2]
[420735825,1776517374846,-1000.0,6.598e-05,2]
[420735826,1776517376816,-1000.0,6.598e-05,2]
[420735827,1776517377339,-1000.0,6.598e-05,2]
[420735828,1776517377643,-1000.0,6.598e-05,2]
[420735829,1776517378123,-1000.0,6.598e-05,2]
[420735830,1776517378451,-1000.0,6.598e-05,2]
[420735831,1776517378801,-1000.0,6.598e-05,2]
[420735832,1776517379207,-1000.0,6.598e-05,2]
[420735833,1776517379557,-1000.0,6.598e-05,2]
[420735834,1776517379995,-1000.0,6.598e-05,2]
[420735835,1776517380405,-1000.0,6.598e-05,2]
[420735836,1776517380831,-1000.0,6.598e-05,2]
[420735837,1776517381274,-1000.0,6.598e-05,2]
[420735838,1776517381666,-1000.0,6.598e-05,2]
[420735839,1776517382015,-1000.0,6.598e-05,2]
[420735840,1776517382492,-300.0,6.597e-05,2]
[420735841,1776517382516,-700.0,6.598e-05,2]
[420735842,1776517383504,-1000.0,6.598e-05,2]
[420735843,1776517383956,-1000.0,6.598e-05,2]
[420735844,1776517384267,-1000.0,6.598e-05,2]
[420735845,1776517384717,-1000.0,6.598e-05,2]
[420735846,1776517386342,-1000.0,6.598e-05,2]
[420735847,1776517386885,-1000.0,6.598e-05,2]
[420735848,1776517387466,-1000.0,6.598e-05,2]
[420735849,1776517387981,-1000.0,6.598e-05,2]
[420735850,1776517388201,-1000.0,6.598e-05,2]
[420735851,1776517389399,-1000.0,6.598e-05,2]
[420735852,1776517390435,-1000.0,6.598e-05,2]
[420735853,1776517391508,-1000.0,6.598e-05,2]
[420735854,1776517393612,-1000.0,6.598e-05,2]
[420735855,1776517399536,-1000.0,6.598e-05,2]
[420735856,1776517399927,-1000.0,6.598e-05,2]
[420735857,1776517400290,-1000.0,6.598e-05,2]
[420735858,1776517400653,-1000.0,6.598e-05,2]
[420735859,1776517401025,-1000.0,6.598e-05,2]
[420735860,1776517401424,-1000.0,6.598e-05,2]
[420735861,1776517401741,-1000.0,6.598e-05,2]
[420735862,1776517402124,-1000.0,6.598e-05,2]
[420735863,1776517402461,-1000.0,6.598e-05,2]
[420735864,1776517402818,-1000.0,6.598e-05,2]
[420735865,1776517403169,-1000.0,6.598e-05,2]
[420735866,1776517403612,-1000.0,6.598e-05,2]
[420735867,1776517403966,-1000.0,6.598e-05,2]
[420735868,1776517404301,-1000.0,6.598e-05,2]
[420735869,1776517404752,-1000.0,6.598e-05,2]
[420735870,1776517405564,-1000.0,6.598e-05,2]
[420735871,1776517405628,-1000.0,6.598e-05,2]
[420735872,1776517406017,-1000.0,6.598e-05,2]
[420735873,1776517406476,-1000.0,6.598e-05,2]
[420735874,1776517406811,-1000.0,6.598e-05,2]
[420735875,1776517407181,-1000.0,6.598e-05,2]
[420735876,1776517407808,-1000.0,6.598e-05,2]
[420735877,1776517407927,-1000.0,6.598e-05,2]
[420735878,1776517408304,-1000.0,6.598e-05,2]
[420735879,1776517408686,-1000.0,6.598e-05,2]
[420735880,1776517409323,-1000.0,6.598e-05,2]
[420735881,1776517409410,-1000.0,6.598e-05,2]
[420735882,1776517409795,-1000.0,6.598e-05,2]
[420735883,1776517410161,-1000.0,6.598e-05,2]
[420735884,1776517410619,-1000.0,6.598e-05,2]
[420735885,1776517410956,-1000.0,6.598e-05,2]
[420735886,1776517411569,-1000.0,6.598e-05,2]
[420735887,1776517411795,-1000.0,6.598e-05,2]
[420735888,1776517412084,-1000.0,6.598e-05,2]
[420735889,1776517412453,-1000.0,6.598e-05,2]
[420735890,1776517412829,-1000.0,6.598e-05,2]
[420735891,1776517413268,-1000.0,6.598e-05,2]
[420735892,1776517413617,-514.0,6.598e-05,2]
[420735893,1776517413641,-486.0,6.598e-05,2]